bitfinex/quotes_SOLUSD_20250316
["timestamp","ask_amount","ask_price","bid_price","bid_amount"]
[1742097286429,0.13376947,135.77,135.76,15.08954575]
[1742097287121,0.14475468,135.78,135.76,114.72351775]
[1742097287328,0.14210825,135.82,135.77,75.73205189]
[1742097287549,0.14210825,135.82,135.79,22.73816889]
[1742097288251,0.14210825,135.82,135.79,30.83866889]
[1742097294434,0.03,135.85,135.81,7.3632]
[1742097294630,0.14575337,135.82,135.81,7.64752314]
[1742097294849,0.14575337,135.82,135.81,22.73706889]
[1742097296855,0.14575337,135.82,135.81,15.08954575]
[1742097299337,0.14575337,135.82,135.81,22.45274575]
[1742097299739,0.14575337,135.82,135.81,7.3632]
[1742097300040,0.14575337,135.82,135.81,22.45274575]
[1742097301755,0.14575337,135.82,135.81,22.73706889]
[1742097302559,0.13433815,135.86,135.83,18.64964886]
[1742097302742,0.14545211,135.88,135.85,15.37386889]
[1742097302943,0.14545211,135.88,135.86,15.08954575]
[1742097303142,0.14545211,135.88,135.86,15.37386889]
[1742097303859,0.14545211,135.88,135.86,22.73436889]
[1742097306160,0.14545211,135.88,135.84,67.90184011]
[1742097306463,0.14545211,135.88,135.86,15.08954575]
[1742097308841,0.14545211,135.88,135.84,68.00380614]
[1742097309047,0.14545211,135.88,135.86,15.08954575]
[1742097314465,0.03,135.87,135.86,15.08954575]
[1742097314847,0.17934837,135.87,135.86,15.08954575]
[1742097316767,7.53924837,135.87,135.86,15.08954575]
[1742097316957,0.17934837,135.87,135.86,15.08954575]
[1742097329982,0.17934837,135.87,135.86,15.15254575]
[1742097331985,0.17934837,135.87,135.86,22.51304575]
[1742097332567,0.17934837,135.87,135.86,22.79736889]
[1742097333289,0.17934837,135.87,135.86,22.51304575]
[1742097333489,0.17934837,135.87,135.86,15.15254575]
[1742097334580,0.03,135.87,135.86,15.15254575]
[1742097334887,0.17698206,135.87,135.86,15.15254575]
[1742097335189,0.17698206,135.87,135.86,22.51304575]
[1742097336088,0.17698206,135.87,135.86,15.15254575]
[1742097336467,0.17698206,135.87,135.86,22.51304575]
[1742097338679,0.17698206,135.87,135.86,22.79736889]
[1742097340685,0.14926796,135.88,135.86,103.49736889]
[1742097340880,0.16181704,135.89,135.88,0.28432314]
[1742097341085,0.16181704,135.89,135.88,75.73205189]
[1742097341969,0.16181704,135.89,135.88,22.73326889]
[1742097344478,0.1475152,135.93,135.88,22.73326889]
[1742097344680,0.1335765,135.92,135.91,15.08954575]
[1742097348893,0.1335765,135.92,135.91,22.44734575]
[1742097353088,0.1335765,135.92,135.91,22.73166889]
[1742097353497,0.1635765,135.92,135.91,22.73166889]
[1742097354012,0.1635765,135.92,135.91,41.38131775]
[1742097354181,0.1475152,135.93,135.91,41.38131775]
[1742097354382,0.1475152,135.93,135.92,21.46954575]
[1742097354581,0.03,135.95,135.93,0.28432314]
[1742097354802,0.1339562,135.94,135.93,0.28432314]
[1742097355001,0.1339562,135.94,135.93,7.64102314]
[1742097355178,0.1339562,135.94,135.93,88.34102314]
[1742097355381,0.1339562,135.94,135.93,103.43056889]
[1742097356900,0.05340051,135.95,135.93,164.89184387]
[1742097357199,0.13960923,135.96,135.95,0.28432314]
[1742097357392,0.13960923,135.96,135.95,75.73205189]
[1742097357589,0.13960923,135.96,135.95,15.08954575]
[1742097358899,0.13960923,135.96,135.93,88.0567]
[1742097359301,0.13960923,135.96,135.95,15.08954575]
[1742097360482,0.13960923,135.96,135.93,88.0567]
[1742097360715,0.13960923,135.96,135.94,15.08954575]
[1742097361308,0.13960923,135.96,135.95,15.08954575]
[1742097361988,0.13960923,135.96,135.93,7.3567]
[1742097362196,0.13960923,135.96,135.94,15.08954575]
[1742097362515,0.13960923,135.96,135.95,15.08954575]
[1742097363385,0.13960923,135.96,135.95,22.44514575]
[1742097364596,0.13960923,135.96,135.95,15.08954575]
[1742097364908,0.13960923,135.96,135.93,15.08954575]
[1742097365206,7.52470923,135.96,135.93,15.08954575]
[1742097365410,15.08954575,135.95,135.91,0.063]
[1742097365617,1.5593,135.94,135.91,15.15254575]
[1742097366818,0.16960923,135.96,135.93,15.08954575]
[1742097367117,0.16960923,135.96,135.94,15.08954575]
[1742097369016,7.52470923,135.96,135.91,7.4206]
[1742097369193,7.52470923,135.96,135.93,15.08954575]
[1742097370899,1.10617315,135.95,135.91,15.15254575]
[1742097371410,22.61425498,135.96,135.91,15.15254575]
[1742097371897,1.10617315,135.95,135.91,15.15254575]
[1742097372817,8.46207315,135.95,135.91,15.15254575]
[1742097373317,8.46207315,135.95,135.92,15.08954575]
[1742097373516,7.3559,135.95,135.92,15.08954575]
[1742097374097,7.3559,135.95,135.91,15.15254575]
[1742097374413,1.10617315,135.94,135.91,15.15254575]
[1742097374718,0.14843008,135.92,135.91,15.15254575]
[1742097377321,7.50563008,135.92,135.91,0.063]
[1742097377524,10.18980323,135.92,135.91,0.063]
[1742097379521,25.27934898,135.92,135.91,0.063]
[1742097380746,43.92899784,135.92,135.91,0.063]
[1742097382420,35.08954575,135.89,135.86,0.063]
[1742097382627,16.1957189,135.88,135.86,0.063]
[1742097383205,1.10617315,135.88,135.86,0.063]
[1742097383703,8.46577315,135.88,135.86,0.063]
[1742097383927,1.10617315,135.88,135.86,0.063]
[1742097384827,8.46577315,135.88,135.86,0.063]
[1742097385525,23.5553189,135.88,135.86,0.063]
[1742097386412,8.46577315,135.88,135.86,0.063]
[1742097386809,21.10617315,135.89,135.86,0.063]
[1742097387136,20.0,135.89,135.87,15.08954575]
[1742097387309,20.0,135.89,135.88,15.08954575]
[1742097388213,20.0,135.89,135.87,15.08954575]
[1742097388413,20.0,135.89,135.86,22.51284575]
[1742097389433,20.0,135.89,135.87,0.063]
[1742097390425,43.5545189,135.89,135.87,0.063]
[1742097390615,20.37607894,135.92,135.88,15.08954575]
[1742097390616,0.14843008,135.92,135.88,15.08954575]
[1742097390811,0.14843008,135.92,135.9,15.08954575]
[1742097391011,0.14843008,135.92,135.89,15.08954575]
[1742097392733,0.14843008,135.92,135.89,22.44814575]
[1742097393327,0.14843008,135.92,135.9,15.08954575]
[1742097394421,1.10617315,135.93,135.9,15.08954575]
[1742097394833,0.14971713,135.91,135.89,22.44814575]
[1742097395416,0.14971713,135.91,135.89,15.08954575]
[1742097398022,0.14971713,135.91,135.89,22.44834575]
[1742097401026,0.14971713,135.91,135.88,15.08954575]
[1742097401623,23.70343603,135.91,135.87,0.063]
[1742097401821,23.70343603,135.91,135.88,0.063]
[1742097402844,16.67454575,135.9,135.88,0.063]
[1742097403049,1.585,135.9,135.88,0.063]
[1742097403246,2.69117315,135.9,135.88,0.063]
[1742097403845,10.04967315,135.9,135.88,0.063]
[1742097404739,0.14971713,135.91,135.89,15.08954575]
[1742097404924,0.14971713,135.91,135.9,15.08954575]
[1742097405126,0.14971713,135.91,135.89,15.08954575]
[1742097409133,0.14971713,135.91,135.89,22.44814575]
[1742097410455,0.14971713,135.91,135.89,7.3586]
[1742097410649,0.14971713,135.91,135.88,22.51174575]
[1742097411660,0.14971713,135.91,135.9,15.08954575]
[1742097412857,0.14971713,135.91,135.9,22.44784575]
[1742097413660,0.14971713,135.91,135.9,15.08954575]
[1742097414036,0.17971713,135.91,135.9,15.08954575]
[1742097414536,0.03,135.91,135.9,15.08954575]
[1742097414735,0.18974024,135.91,135.9,15.08954575]
[1742097415530,0.18974024,135.91,135.89,15.08954575]
[1742097419759,0.18974024,135.91,135.88,0.063]
[1742097419959,23.74325914,135.91,135.88,0.063]
[1742097420161,15.08954575,135.9,135.88,0.063]
[1742097420463,25.29725914,135.91,135.88,0.063]
[1742097421567,15.08954575,135.9,135.88,0.063]
[1742097421741,1.10617315,135.89,135.88,0.063]
[1742097421947,25.29725914,135.91,135.88,0.063]
[1742097422364,10.20771339,135.91,135.88,0.063]
[1742097423465,25.29725914,135.91,135.88,0.063]
[1742097426769,0.18974024,135.91,135.88,0.063]
[1742097428377,0.18974024,135.91,135.88,15.15254575]
[1742097429666,0.18974024,135.91,135.88,0.063]
[1742097429841,7.54764024,135.91,135.88,0.063]
[1742097431245,1.10617315,135.9,135.88,0.063]
[1742097431873,15.08954575,135.89,135.88,0.063]
[1742097432848,22.44834575,135.89,135.88,0.063]
[1742097434870,22.60058787,135.89,135.88,0.063]
[1742097436185,41.25023673,135.89,135.88,0.063]
[1742097437472,47.57023673,135.89,135.88,0.063]
[1742097438269,47.7123983,135.89,135.88,0.063]
[1742097438478,48.35455987,135.89,135.88,0.0001]
[1742097438773,48.35455987,135.89,135.87,0.063]
[1742097438774,0.64216157,135.88,135.87,0.0001]
[1742097439074,16.83788047,135.88,135.87,0.0001]
[1742097440269,16.33788047,135.88,135.87,0.0001]
[1742097440679,23.69728047,135.88,135.87,0.0001]
[1742097444169,125.1890909,135.88,135.87,0.0001]
[1742097444359,124.6890909,135.88,135.87,0.0001]
[1742097449899,125.1890909,135.88,135.87,0.0001]
[1742097450482,124.6890909,135.88,135.87,0.0001]
[1742097450680,125.1890909,135.88,135.87,0.0001]
[1742097452385,20.0,135.84,135.82,0.1920294]
[1742097452684,16.1957189,135.83,135.82,0.1920294]
[1742097453173,23.5578189,135.83,135.82,0.1920294]
[1742097453374,8.46827315,135.83,135.82,0.1920294]
[1742097454058,23.5578189,135.83,135.82,0.1920294]
[1742097454679,23.69828985,135.83,135.82,0.1920294]
[1742097462678,0.14047095,135.83,135.82,0.1920294]
[1742097462970,0.14047095,135.83,135.82,15.28157515]
[1742097463304,0.14047095,135.83,135.82,30.74147515]
[1742097464683,0.14047095,135.83,135.82,23.37887515]
[1742097464868,0.14047095,135.83,135.82,8.2893294]
[1742097465274,0.14047095,135.83,135.82,23.37887515]
[1742097468489,0.14047095,135.83,135.82,0.1920294]
[1742097471274,7.50257095,135.83,135.82,0.1920294]
[1742097471494,22.5921167,135.83,135.82,0.1920294]
[1742097472600,0.14047095,135.83,135.82,0.1920294]
[1742097474495,22.45034575,135.86,135.82,0.1920294]
[1742097474701,0.14361689,135.83,135.82,0.1920294]
[1742097475076,0.14361689,135.83,135.82,22.64417515]
[1742097476282,0.14361689,135.83,135.82,0.1920294]
[1742097478322,0.14361689,135.83,135.82,7.5546294]
[1742097478508,0.14361689,135.83,135.82,22.64417515]
[1742097480808,0.14361689,135.83,135.82,28.89197515]
[1742097481404,0.14361689,135.83,135.82,29.17629829]
[1742097482999,0.14361689,135.83,135.82,109.70523015]
[1742097483201,0.13365197,135.84,135.82,109.70523015]
[1742097483383,0.13365197,135.84,135.83,75.44772875]
[1742097483584,0.13365197,135.84,135.83,76.55149473]
[1742097483782,0.13365197,135.84,135.83,176.18546673]
[1742097484016,4.926e-05,135.85,135.84,20.455072]
[1742097484181,0.14792163,135.86,135.84,41.79241775]
[1742097484379,0.14792163,135.86,135.85,26.35754581]
[1742097484603,0.14792163,135.86,135.85,122.14709156]
[1742097485205,0.14792163,135.86,135.85,129.50809156]
[1742097485382,0.14792163,135.86,135.85,109.75486889]
[1742097486896,0.14792163,135.86,135.85,102.10954575]
[1742097487100,0.14792163,135.86,135.85,95.78954575]
[1742097488611,0.14792163,135.86,135.85,103.15054575]
[1742097488786,0.14792163,135.86,135.85,22.45054575]
[1742097489506,0.14792163,135.86,135.85,22.73486889]
[1742097494510,0.03,135.87,135.85,22.59270732]
[1742097494714,0.1687644,135.87,135.86,22.45004575]
[1742097497917,0.1687644,135.87,135.86,22.73436889]
[1742097503316,0.1687644,135.87,135.86,22.45004575]
[1742097503515,0.1687644,135.87,135.85,22.45034575]
[1742097504119,0.1687644,135.87,135.86,15.08954575]
[1742097505720,0.1687644,135.87,135.86,22.45004575]
[1742097507932,0.1687644,135.87,135.86,15.08954575]
[1742097508233,0.1687644,135.87,135.85,7.4238]
[1742097508234,0.1687644,135.87,135.85,22.51334575]
[1742097508526,0.1687644,135.87,135.85,0.063]
[1742097511632,7.5286644,135.87,135.85,0.063]
[1742097511814,23.7243833,135.87,135.85,0.063]
[1742097514431,23.5856189,135.87,135.85,0.063]
[1742097514726,0.14272495,135.86,135.85,0.063]
[1742097517538,7.50322495,135.86,135.85,0.063]
[1742097517719,41.24241956,135.86,135.85,0.063]
[1742097518036,47.85541956,135.86,135.85,0.063]
[1742097518237,29.2057707,135.86,135.85,0.063]
[1742097521620,54.31758113,135.86,135.85,0.063]
[1742097521941,56.5220427,135.86,135.85,0.0001]
[1742097522417,56.0220427,135.86,135.85,0.0001]
[1742097522914,116.3802257,135.86,135.85,0.0001]
[1742097523650,116.8802257,135.86,135.85,0.0001]
[1742097523850,20.14216157,135.83,135.82,0.1920294]
[1742097524157,43.69998047,135.83,135.82,0.1920294]
[1742097527934,62.4917909,135.83,135.82,0.1920294]
[1742097528119,64.5540909,135.83,135.82,2.94e-05]
[1742097531052,63.91192933,135.83,135.82,2.94e-05]
[1742097531349,43.91192933,135.83,135.82,2.94e-05]
[1742097533647,43.76976776,135.83,135.82,2.94e-05]
[1742097534848,43.92939374,135.83,135.82,2.94e-05]
[1742097540444,8.62789913,135.83,135.82,2.94e-05]
[1742097540761,1.26579913,135.83,135.82,2.94e-05]
[1742097541645,0.15962598,135.83,135.82,2.94e-05]
[1742097541967,20.15962598,135.83,135.82,2.94e-05]
[1742097546057,27.52172598,135.83,135.82,2.94e-05]
[1742097546256,42.61127173,135.83,135.82,2.94e-05]
[1742097546671,20.15962598,135.83,135.82,2.94e-05]
[1742097548072,27.52172598,135.83,135.82,2.94e-05]
[1742097550859,20.15962598,135.83,135.82,2.94e-05]
[1742097551782,27.52172598,135.83,135.82,2.94e-05]
[1742097552790,7.52172598,135.83,135.82,2.94e-05]
[1742097554486,23.5875189,135.84,135.82,2.94e-05]
[1742097554681,0.13924366,135.83,135.82,2.94e-05]
[1742097567601,7.50134366,135.83,135.82,2.94e-05]
[1742097570907,22.59088941,135.83,135.82,2.94e-05]
[1742097571103,7.50134366,135.83,135.82,2.94e-05]
[1742097571289,0.13924366,135.83,135.82,2.94e-05]
[1742097573892,0.13924366,135.83,135.82,15.08957515]
[1742097574509,0.03,135.84,135.82,15.08957515]
[1742097574814,0.14112663,135.83,135.82,15.08957515]
[1742097575416,0.14112663,135.83,135.82,22.45217515]
[1742097576194,0.14112663,135.83,135.82,2.94e-05]
[1742097577199,15.23067238,135.83,135.82,2.94e-05]
[1742097577517,22.59277238,135.83,135.82,2.94e-05]
[1742097578017,7.50322663,135.83,135.82,2.94e-05]
[1742097582907,0.14112663,135.83,135.82,2.94e-05]
[1742097587039,41.24242124,135.83,135.82,2.94e-05]
[1742097590246,0.14112663,135.83,135.82,2.94e-05]
[1742097591161,7.50322663,135.83,135.82,2.94e-05]
[1742097591440,22.59277238,135.83,135.82,2.94e-05]
[1742097594434,22.45164575,135.83,135.82,2.94e-05]
[1742097594726,22.59478458,135.83,135.82,2.94e-05]
[1742097599445,7.50523883,135.83,135.82,2.94e-05]
[1742097601826,22.59478458,135.83,135.82,2.94e-05]
[1742097602650,7.50523883,135.83,135.82,2.94e-05]
[1742097604258,22.59478458,135.83,135.82,2.94e-05]
[1742097605143,41.52875658,135.83,135.82,2.94e-05]
[1742097605652,18.79181043,135.82,135.81,2.94e-05]
[1742097605831,35.1296909,135.82,135.81,2.94e-05]
[1742097606145,42.4922909,135.82,135.81,2.94e-05]
[1742097606929,38.79181043,135.8,135.79,2.94e-05]
[1742097607127,61.4296909,135.8,135.79,2.94e-05]
[1742097607333,121.7878739,135.8,135.79,2.94e-05]
[1742097607758,1.79606157,135.78,135.77,2.94e-05]
[1742097608056,96.99961233,135.78,135.77,2.94e-05]
[1742097608448,104.36441233,135.78,135.77,2.94e-05]
[1742097609330,104.22225076,135.78,135.77,2.94e-05]
[1742097609532,16.1957189,135.78,135.77,2.94e-05]
[1742097609729,1.10617315,135.78,135.77,2.94e-05]
[1742097610125,1.10617315,135.79,135.77,2.94e-05]
[1742097610730,7.42617315,135.8,135.77,2.94e-05]
[1742097611047,11.23051999,135.81,135.77,15.08957515]
[1742097611733,16.1957189,135.81,135.77,2.94e-05]
[1742097612133,23.5590189,135.81,135.77,2.94e-05]
[1742097612347,15.08954575,135.8,135.77,2.94e-05]
[1742097612842,22.45334575,135.8,135.77,2.94e-05]
[1742097613147,16.1957189,135.79,135.77,2.94e-05]
[1742097614152,16.1957189,135.8,135.77,2.94e-05]
[1742097614846,0.13504301,135.78,135.77,7.3653294]
[1742097615434,0.13504301,135.78,135.77,29.00257515]
[1742097616954,0.13504301,135.78,135.77,29.14473672]
[1742097619940,0.13504301,135.78,135.77,29.00257515]
[1742097620256,0.13504301,135.78,135.77,35.46473672]
[1742097620561,0.13504301,135.78,135.77,95.82291972]
[1742097623963,0.13504301,135.78,135.77,35.46473672]
[1742097624759,0.16504301,135.78,135.77,35.46473672]
[1742097630566,0.00936801,135.78,135.77,35.46473672]
[1742097630766,0.00936801,135.78,135.77,95.96508129]
[1742097631865,0.00936801,135.78,135.77,35.60689829]
[1742097634852,0.15207757,135.78,135.77,35.60689829]
[1742097637566,0.15207757,135.78,135.77,114.61473015]
[1742097637950,9.427e-05,135.79,135.78,0.14216157]
[1742097638146,9.427e-05,135.79,135.78,16.33585494]
[1742097638348,0.15544795,135.8,135.79,18.79181043]
[1742097638550,0.15544795,135.8,135.79,33.88135618]
[1742097639466,0.15544795,135.8,135.79,41.24565618]
[1742097639965,4.795e-05,135.8,135.79,123.62561775]
[1742097640169,0.13270667,135.81,135.8,0.14216157]
[1742097640355,0.13270667,135.81,135.8,16.33571731]
[1742097640757,0.13270667,135.81,135.8,15.23170732]
[1742097641568,0.13270667,135.81,135.8,15.08954575]
[1742097642672,0.13270667,135.81,135.79,15.08954575]
[1742097644284,0.13270667,135.81,135.79,22.45374575]
[1742097644878,0.13270667,135.81,135.79,15.08954575]
[1742097645375,0.13270667,135.81,135.79,22.45374575]
[1742097645560,0.13270667,135.81,135.8,15.08954575]
[1742097647278,0.16270667,135.81,135.8,15.08954575]
[1742097650672,0.16270667,135.81,135.79,15.08954575]
[1742097652180,7.52600667,135.81,135.77,15.08957515]
[1742097652664,7.52600667,135.81,135.77,2.94e-05]
[1742097652665,22.61555242,135.81,135.77,2.94e-05]
[1742097652863,15.08954575,135.8,135.77,2.94e-05]
[1742097653069,16.1957189,135.8,135.77,2.94e-05]
[1742097653270,15.08954575,135.79,135.77,2.94e-05]
[1742097653574,16.1957189,135.8,135.77,2.94e-05]
[1742097653954,7.3643,135.79,135.77,2.94e-05]
[1742097654479,22.45384575,135.79,135.77,2.94e-05]
[1742097654776,0.16188382,135.78,135.77,2.94e-05]
[1742097661058,0.16188382,135.78,135.77,15.08957515]
[1742097661763,0.16188382,135.78,135.77,22.45487515]
[1742097662786,0.16188382,135.78,135.77,83.09738129]
[1742097662995,0.15205325,135.79,135.78,0.14216157]
[1742097663173,0.15205325,135.79,135.78,75.58989032]
[1742097663689,0.15205325,135.79,135.78,83.09685189]
[1742097663894,8.819e-05,135.8,135.78,84.20103867]
[1742097664185,8.819e-05,135.8,135.79,15.23170732]
[1742097664397,4.73e-06,135.81,135.8,1.74566157]
[1742097664684,4.73e-06,135.81,135.8,37.93917248]
[1742097664881,1.304e-05,135.82,135.81,6.30606157]
[1742097665065,1.304e-05,135.82,135.81,27.69560732]
[1742097665785,1.304e-05,135.82,135.81,35.05880732]
[1742097666084,9.097e-05,135.83,135.82,0.28432314]
[1742097666381,9.097e-05,135.83,135.82,95.48559742]
[1742097667461,9.097e-05,135.83,135.82,16.47776556]
[1742097667665,9.097e-05,135.83,135.82,95.48559742]
[1742097667882,9.097e-05,135.83,135.82,102.84819742]
[1742097668688,9.097e-05,135.83,135.82,42.49001442]
[1742097670287,9.097e-05,135.83,135.82,123.19001442]
[1742097670789,9.097e-05,135.83,135.82,103.43646889]
[1742097671592,9.097e-05,135.83,135.82,95.93170732]
[1742097672390,9.097e-05,135.83,135.82,95.78954575]
[1742097672768,9.097e-05,135.83,135.81,15.08954575]
[1742097674470,0.03,135.84,135.81,15.08954575]
[1742097674869,0.14756193,135.82,135.81,15.08954575]
[1742097675886,0.14756193,135.82,135.81,22.59490732]
[1742097681877,0.14756193,135.82,135.81,22.65790732]
[1742097682273,0.17756193,135.82,135.81,22.65790732]
[1742097682479,0.17756193,135.82,135.81,15.15254575]
[1742097682994,0.17756193,135.82,135.81,0.063]
[1742097683871,15.26710768,135.82,135.81,0.063]
[1742097684773,22.62970768,135.82,135.81,0.063]
[1742097685095,0.17756193,135.82,135.81,0.063]
[1742097686390,23.73588083,135.82,135.81,0.063]
[1742097687580,48.40092969,135.82,135.81,0.063]
[1742097688090,18.64964886,135.79,135.77,2.94e-05]
[1742097688294,16.1957189,135.78,135.77,2.94e-05]
[1742097689174,15.08954575,135.78,135.77,2.94e-05]
[1742097690700,22.45434575,135.78,135.77,2.94e-05]
[1742097691093,41.10399461,135.78,135.77,2.94e-05]
[1742097691783,56.33570193,135.78,135.77,2.94e-05]
[1742097691983,107.76190075,135.78,135.77,2.94e-05]
[1742097693197,107.47757761,135.78,135.77,2.94e-05]
[1742097693386,47.11939461,135.78,135.77,2.94e-05]
[1742097694702,39.75459461,135.78,135.77,2.94e-05]
[1742097694906,39.89289697,135.78,135.77,2.94e-05]
[1742097695804,18.78795122,135.78,135.77,2.94e-05]
[1742097696044,33.87749697,135.78,135.77,2.94e-05]
[1742097696302,42.35733415,135.78,135.77,2.94e-05]
[1742097696802,49.72213415,135.78,135.77,2.94e-05]
[1742097700190,73.29151708,135.78,135.77,2.94e-05]
[1742097701096,80.09214022,135.78,135.77,2.94e-05]
[1742097702589,80.59214022,135.78,135.77,2.94e-05]
[1742097702989,80.09214022,135.78,135.77,2.94e-05]
[1742097711726,80.59214022,135.78,135.77,2.94e-05]
[1742097712107,80.09214022,135.78,135.77,2.94e-05]
[1742097712824,80.09214022,135.78,135.75,0.063]
[1742097713015,0.14216157,135.73,135.71,0.0430706]
[1742097713223,54.54493901,135.72,135.71,0.0430706]
[1742097714329,61.91303901,135.72,135.71,0.0430706]
[1742097714707,62.04710843,135.72,135.71,0.0430706]
[1742097715629,38.64964886,135.69,135.68,0.063]
[1742097715825,62.21903179,135.69,135.68,0.063]
[1742097716302,53.75437325,135.69,135.68,0.063]
[1742097716834,61.12407325,135.69,135.68,0.063]
[1742097719926,27.3697,135.69,135.68,0.063]
[1742097720229,16.21089754,135.7,135.68,0.063]
[1742097720913,15.23879381,135.72,135.68,0.063]
[1742097721111,1.24024257,135.72,135.68,15.16772439]
[1742097721331,0.13406942,135.72,135.68,15.16772439]
[1742097721638,15.23879381,135.72,135.68,0.063]
[1742097722043,15.23879381,135.72,135.68,7.4332]
[1742097722212,23.72011885,135.72,135.68,7.4332]
[1742097722848,0.13406942,135.72,135.68,31.01924943]
[1742097723637,23.72011885,135.72,135.68,7.4332]
[1742097724147,0.13406942,135.72,135.68,7.4332]
[1742097724314,0.13406942,135.72,135.68,31.01924943]
[1742097726429,0.13406942,135.72,135.68,7.4332]
[1742097730635,0.13406942,135.72,135.68,31.01924943]
[1742097731745,0.16406942,135.72,135.68,31.01924943]
[1742097734646,0.03,135.72,135.7,23.58604943]
[1742097734946,0.14748358,135.71,135.7,23.58604943]
[1742097735122,0.14748358,135.71,135.69,23.58604943]
[1742097736128,0.14748358,135.71,135.69,30.95534943]
[1742097736531,0.14748358,135.71,135.68,23.64904943]
[1742097736836,0.14748358,135.71,135.68,0.063]
[1742097738032,0.14748358,135.71,135.68,31.01924943]
[1742097739150,0.14748358,135.71,135.7,23.58604943]
[1742097740018,0.14748358,135.71,135.7,30.95514943]
[1742097741742,0.14748358,135.71,135.7,23.58604943]
[1742097742038,0.14748358,135.71,135.69,30.95554943]
[1742097742243,0.14748358,135.71,135.68,0.063]
[1742097742244,7.51608358,135.71,135.68,0.063]
[1742097743325,7.54608358,135.71,135.68,0.063]
[1742097743838,15.09598952,135.7,135.68,0.063]
[1742097744037,15.09598952,135.69,135.68,0.063]
[1742097745143,22.46568952,135.69,135.68,0.063]
[1742097745327,7.3697,135.69,135.68,0.063]
[1742097746048,15.09598952,135.7,135.68,0.063]
[1742097746234,0.17748358,135.71,135.68,15.15898952]
[1742097746437,0.17748358,135.71,135.69,15.09598952]
[1742097746739,0.17748358,135.71,135.7,15.09598952]
[1742097747326,0.17748358,135.71,135.69,15.09598952]
[1742097748567,0.17748358,135.71,135.69,22.46568952]
[1742097750235,0.17748358,135.71,135.69,15.09598952]
[1742097750433,0.17748358,135.71,135.68,22.52888952]
[1742097751335,0.17748358,135.71,135.68,15.15898952]
[1742097751645,0.17748358,135.71,135.68,22.52908952]
[1742097753349,0.17748358,135.71,135.68,15.15898952]
[1742097754544,0.03,135.71,135.68,15.15898952]
[1742097754851,0.14908823,135.69,135.68,15.15898952]
[1742097755031,0.14908823,135.69,135.68,22.52918952]
[1742097760552,0.14908823,135.69,135.68,15.15898952]
[1742097760847,0.14908823,135.69,135.68,0.063]
[1742097761057,0.14908823,135.69,135.68,22.52918952]
[1742097761745,0.14908823,135.69,135.68,24.39661266]
[1742097761951,8.823e-05,135.69,135.68,43.04626152]
[1742097763052,8.823e-05,135.69,135.68,123.74626152]
[1742097763351,3.704e-05,135.7,135.69,0.14216157]
[1742097763574,6.727e-05,135.71,135.69,16.48524965]
[1742097763750,6.727e-05,135.71,135.7,15.23815109]
[1742097765135,6.727e-05,135.71,135.7,22.60725109]
[1742097766261,6.727e-05,135.71,135.7,22.60725109]
[1742097768657,0.03006727,135.71,135.7,22.60725109]
[1742097769250,0.03006727,135.71,135.7,22.46508952]
[1742097771965,0.03006727,135.71,135.7,15.09598952]
[1742097772155,0.03006727,135.71,135.69,95.79598952]
[1742097773269,0.03006727,135.71,135.69,15.09598952]
[1742097773568,0.03006727,135.71,135.68,15.15898952]
[1742097774467,0.03,135.71,135.68,15.15898952]
[1742097774669,0.03,135.71,135.68,0.063]
[1742097774845,0.15401156,135.69,135.68,15.15898952]
[1742097776969,0.15401156,135.69,135.68,0.063]
[1742097781773,0.15401156,135.69,135.68,15.15898952]
[1742097782474,0.15401156,135.69,135.68,22.52918952]
[1742097791183,0.15401156,135.69,135.68,15.15898952]
[1742097792184,0.15401156,135.69,135.68,0.063]
[1742097794575,10.08267315,135.71,135.68,0.063]
[1742097794781,0.15360648,135.69,135.68,0.063]
[1742097796981,7.52330648,135.69,135.68,0.063]
[1742097798691,0.15360648,135.69,135.68,0.063]
[1742097805393,0.15360648,135.69,135.68,15.15898952]
[1742097809901,0.15360648,135.69,135.68,0.063]
[1742097814184,7.52330648,135.69,135.68,0.063]
[1742097814496,7.3697,135.69,135.68,0.063]
[1742097814896,7.50478568,135.69,135.68,0.063]
[1742097821405,0.13508568,135.69,135.68,0.063]
[1742097821593,0.13508568,135.69,135.68,15.15898952]
[1742097822005,0.13508568,135.69,135.68,22.52918952]
[1742097826511,0.13508568,135.69,135.68,15.15898952]
[1742097826812,0.13508568,135.69,135.68,0.063]
[1742097827188,7.50478568,135.69,135.68,0.063]
[1742097828114,11.4315111,135.69,135.68,0.063]
[1742097828623,4.0618111,135.69,135.68,0.063]
[1742097834532,3.92672542,135.69,135.68,0.063]
[1742097834824,4.06398719,135.69,135.68,0.063]
[1742097835228,4.06398719,135.69,135.68,15.15898952]
[1742097836130,4.06398719,135.69,135.68,22.52918952]
[1742097837521,4.06398719,135.69,135.68,0.063]
[1742097843332,4.06398719,135.69,135.68,15.15898952]
[1742097844740,4.06398719,135.69,135.68,22.52918952]
[1742097851549,4.06398719,135.69,135.68,22.67135109]
[1742097852828,4.06398719,135.69,135.68,22.52918952]
[1742097854448,3.92672542,135.69,135.68,22.52918952]